bitfinex-derivatives/quotes_BTCF0:USTF0_20251214
["timestamp","ask_amount","ask_price","bid_price","bid_amount"]
[1765755602876,0.41192,88086.0,88084.0,0.0113518]
[1765755603071,0.5653396,88102.0,88101.0,0.0113496]
[1765755603273,0.5653396,88102.0,88096.0,0.0113502]
[1765755603274,0.20755,88097.0,88096.0,0.0113502]
[1765755603475,0.0001696,88102.0,88085.0,0.37232192]
[1765755603476,0.41192,88086.0,88085.0,0.37232192]
[1765755604274,0.35122879,88086.0,88085.0,0.37232192]
[1765755604474,0.14367879,88086.0,88085.0,0.78793192]
[1765755604685,0.41192,88097.0,88096.0,0.0113502]
[1765755604871,0.3721491,88106.0,88085.0,0.36097022]
[1765755604872,0.41192,88092.0,88091.0,0.0113509]
[1765755605077,0.20755,88086.0,88085.0,0.36097022]
[1765755605272,0.41192,88086.0,88085.0,0.36097022]
[1765755605784,0.0688,88101.0,88085.0,0.36097022]
[1765755605986,0.41192,88095.0,88094.0,0.0113505]
[1765755606289,0.14966936,88110.0,88085.0,0.36097022]
[1765755606290,0.41192,88086.0,88085.0,0.36097022]
[1765755606483,0.41192,88086.0,88085.0,0.00017022]
[1765755606680,0.20437,88086.0,88085.0,0.41578022]
[1765755607881,0.41192,88086.0,88085.0,0.20809022]
[1765755608085,0.41192,88086.0,88085.0,0.00017022]
[1765755613286,0.25995,88101.0,88098.0,0.4281699]
[1765755613287,0.21239,88099.0,88098.0,0.4281699]
[1765755613588,0.21239,88099.0,88098.0,0.7889699]
[1765755614191,0.42746,88099.0,88098.0,0.7889699]
[1765755614699,0.42746,88099.0,88098.0,0.3721499]
[1765755616496,0.0001696,88102.0,88101.0,0.4281696]
[1765755616682,0.0001696,88102.0,88101.0,1.1478096]
[1765755617188,0.42746,88122.0,88121.0,0.011347]
[1765755617693,0.42746,88120.0,88119.0,0.3608]
[1765755622194,0.42746,88120.0,88119.0,0.3721473]
[1765755622985,0.42746,88120.0,88119.0,0.5759273]
[1765755622986,0.21239,88120.0,88119.0,0.5759273]
[1765755623186,0.14966936,88160.0,88128.0,0.011346]
[1765755623187,0.42746,88129.0,88128.0,0.011346]
[1765755623897,0.42746,88120.0,88119.0,0.20378]
[1765755624100,0.42746,88120.0,88119.0,0.41682]
[1765755625099,0.42746,88120.0,88119.0,0.20378]
[1765755625300,0.42746,88117.0,88115.0,0.3608]
[1765755625495,0.42746,88116.0,88115.0,0.3721478]
[1765755625897,0.42746,88116.0,88115.0,0.5759278]
[1765755626796,0.21922,88139.0,88138.0,0.20766]
[1765755626994,0.42797,88138.0,88137.0,0.0113449]
[1765755627395,0.42797,88138.0,88137.0,0.2284449]
[1765755627585,0.42797,88138.0,88137.0,0.0113449]
[1765755627790,0.14966936,88147.0,88133.0,0.3608]
[1765755627992,0.42797,88139.0,88138.0,0.0113448]
[1765755630195,0.42797,88139.0,88138.0,0.2284448]
[1765755630793,0.42797,88139.0,88138.0,0.0113448]
[1765755631303,0.39958,88134.0,88133.0,0.3721454]
[1765755631498,0.39958,88134.0,88133.0,0.7973554]
[1765755631706,0.39958,88134.0,88133.0,0.3721454]
[1765755632307,0.39958,88134.0,88133.0,0.5886554]
[1765755632504,0.39958,88134.0,88133.0,0.3721454]
[1765755633205,0.39958,88134.0,88133.0,0.3608]
[1765755633403,0.39958,88131.0,88130.0,0.57748022]
[1765755633604,0.39958,88131.0,88130.0,0.78618022]
[1765755634202,0.22585554,88143.0,88132.0,0.5634257]
[1765755634203,0.39958,88133.0,88132.0,0.5634257]
[1765755634796,0.39958,88133.0,88132.0,0.4365557]
[1765755635706,0.39958,88143.0,88142.0,0.0113444]
[1765755636696,0.39958,88131.0,88130.0,0.00017022]
[1765755637098,0.39958,88131.0,88130.0,0.01151612]
[1765755637293,0.39958,88131.0,88130.0,0.44868364]
[1765755637505,0.3608,88146.0,88130.0,0.55225022]
[1765755637707,0.20119,88138.0,88137.0,0.797355]
[1765755637905,0.39958,88138.0,88137.0,0.797355]
[1765755638999,0.39958,88138.0,88137.0,0.816355]
[1765755641601,0.39958,88138.0,88137.0,0.44421]
[1765755641801,0.39958,88138.0,88137.0,0.019]
[1765755642207,0.76038,88138.0,88137.0,0.019]
[1765755642406,0.39958,88138.0,88137.0,0.019]
[1765755642711,0.39958,88138.0,88137.0,0.44421]
[1765755643211,0.4109249,88138.0,88137.0,0.019]
[1765755643398,0.7717249,88138.0,88137.0,0.019]
[1765755645109,0.39958,88138.0,88137.0,0.019]
[1765755646708,0.76038,88138.0,88137.0,0.019]
[1765755650715,0.4109258,88131.0,88130.0,0.00017022]
[1765755650909,0.39958,88131.0,88130.0,0.00017022]
[1765755651306,0.39958,88131.0,88130.0,0.01151612]
[1765755651507,0.39958,88131.0,88130.0,0.43672612]
[1765755651814,0.40058,88131.0,88130.0,0.45172612]
[1765755652208,0.40058,88131.0,88130.0,0.4924233]
[1765755652914,0.40058,88131.0,88130.0,0.45172612]
[1765755653111,0.40058,88131.0,88130.0,0.4924233]
[1765755653506,0.40158,88131.0,88130.0,0.5114233]
[1765755654517,0.40158,88131.0,88130.0,0.0748674]
[1765755654706,0.40158,88131.0,88130.0,0.03417022]
[1765755654906,0.40158,88131.0,88130.0,0.5000774]
[1765755655105,0.40158,88131.0,88130.0,0.45938022]
[1765755655710,0.002,88131.0,88130.0,0.82018022]
[1765755655910,0.76038,88155.0,88154.0,0.42521]
[1765755656111,0.39958,88161.0,88160.0,0.436552]
[1765755656506,0.22403954,88170.0,88155.0,0.42688]
[1765755656507,0.39948,88156.0,88155.0,0.42688]
[1765755656714,0.39948,88156.0,88155.0,0.2278527]
[1765755657106,0.39948,88156.0,88155.0,0.21651]
[1765755657508,0.39917,88153.0,88152.0,0.00017022]
[1765755657708,0.39917,88153.0,88152.0,0.41496022]
[1765755659908,0.39917,88153.0,88152.0,0.41896022]
[1765755660113,0.39917,88153.0,88152.0,0.42496022]
[1765755660424,0.39917,88153.0,88152.0,0.01017022]
[1765755660918,0.39917,88137.0,88136.0,0.04080247]
[1765755661116,0.39917,88133.0,88132.0,0.04080247]
[1765755661316,0.4105157,88132.0,88131.0,0.40160247]
[1765755661618,0.4105157,88132.0,88131.0,0.3608]
[1765755662018,0.5281659,88130.0,88128.0,0.04080247]
[1765755662219,0.39917,88127.0,88126.0,0.3608]
[1765755662618,0.1289959,88130.0,88123.0,0.00017022]
[1765755662619,0.39917,88124.0,88123.0,0.00017022]
[1765755663913,0.39917,88124.0,88123.0,0.00217022]
[1765755664318,0.39917,88124.0,88123.0,0.00617022]
[1765755664915,0.39917,88124.0,88123.0,0.21059022]
[1765755666129,0.39917,88124.0,88123.0,0.00617022]
[1765755666825,0.39917,88124.0,88123.0,0.00417022]
[1765755667027,0.39917,88124.0,88123.0,0.00617022]
[1765755669222,0.39917,88124.0,88123.0,0.39880022]
[1765755670034,0.3976354,88134.0,88133.0,0.20187]
[1765755670233,0.01151492,88140.0,88139.0,0.39008]
[1765755670442,0.00017022,88140.0,88139.0,0.39008]
[1765755670939,0.58148954,88160.0,88143.0,0.4014242]
[1765755670940,0.19848,88144.0,88143.0,0.4014242]
[1765755671136,0.0113432,88151.0,88139.0,0.3608]
[1765755671137,0.38629,88140.0,88139.0,0.60339444]
[1765755671333,0.38629,88140.0,88139.0,0.3608]
[1765755671531,0.11603,88150.0,88138.0,0.20187]
[1765755671532,0.3976348,88139.0,88138.0,0.20187]
[1765755671741,0.38629,88147.0,88146.0,0.39008]
[1765755671942,0.3976327,88155.0,88154.0,0.50828]
[1765755672240,0.38629,88147.0,88146.0,0.00017022]
[1765755672837,0.38629,88147.0,88146.0,0.00217022]
[1765755673642,0.38629,88147.0,88146.0,0.00317022]
[1765755674235,0.38629,88147.0,88146.0,0.00517022]
[1765755675445,0.38629,88147.0,88146.0,0.20604022]
[1765755675740,0.38629,88147.0,88146.0,0.00417022]
[1765755676131,0.38629,88147.0,88146.0,0.00217022]
[1765755676336,0.3976346,88140.0,88139.0,0.3608]
[1765755676537,0.0113446,88140.0,88139.0,0.75088]
[1765755676846,0.3976341,88144.0,88143.0,0.39008]
[1765755677046,0.3976341,88144.0,88143.0,0.20187]
[1765755677936,0.3976346,88140.0,88139.0,0.3608]
[1765755678135,0.3976346,88140.0,88139.0,0.56267]
[1765755678538,0.38729,88140.0,88139.0,0.75988]
[1765755678744,0.3986346,88140.0,88139.0,0.75988]
[1765755679248,0.3986346,88140.0,88139.0,0.76288]
[1765755679448,0.3996346,88140.0,88139.0,0.77488]
[1765755680048,0.3986346,88140.0,88139.0,0.3728]
[1765755680247,0.3986346,88140.0,88139.0,0.3678]
[1765755680435,0.5059746,88140.0,88139.0,0.009]
[1765755681739,0.5049746,88140.0,88139.0,0.005]
[1765755681939,0.5059746,88140.0,88139.0,0.003]
[1765755682444,0.3976351,88136.0,88135.0,0.00017022]
[1765755684853,0.3976351,88136.0,88135.0,0.00117022]
[1765755685048,0.7584351,88136.0,88135.0,0.00117022]
[1765755686439,0.7584351,88136.0,88135.0,0.39683022]
[1765755686440,0.19848,88136.0,88135.0,0.39683022]
[1765755686639,0.0113446,88140.0,88139.0,0.39566]
[1765755687052,0.4020446,88140.0,88139.0,0.39566]
[1765755687644,0.4020451,88136.0,88135.0,0.00017022]
[1765755687845,0.7628451,88136.0,88135.0,0.00117022]
[1765755688442,0.3907,88121.0,88120.0,0.04072205]
[1765755688644,0.03827,88130.0,88115.0,0.04072205]
[1765755688645,0.4020477,88116.0,88115.0,0.04072205]
[1765755689251,0.3907,88114.0,88113.0,0.23970205]
[1765755689558,0.4020481,88113.0,88112.0,0.40152205]
[1765755689749,0.4020481,88113.0,88112.0,0.80053205]
[1765755691057,0.3907,88113.0,88112.0,0.80053205]
[1765755691553,0.3907,88113.0,88112.0,0.76181]
[1765755691757,0.3907,88113.0,88112.0,0.76381]
[1765755691958,0.3907,88113.0,88112.0,0.76181]
[1765755692161,0.3907,88113.0,88112.0,0.76381]
[1765755693050,0.3907,88113.0,88112.0,0.004]
[1765755693959,0.0113481,88114.0,88105.0,0.00017022]
[1765755693960,0.391989,88106.0,88105.0,0.00017022]
[1765755694148,0.19834,88092.0,88091.0,0.39725]
[1765755694349,0.38064,88092.0,88091.0,0.43797205]
[1765755694546,0.38064,88092.0,88091.0,0.39725]
[1765755695352,0.38164,88092.0,88091.0,0.40825]
[1765755695552,0.38264,88092.0,88091.0,0.42025]
[1765755697159,0.38264,88092.0,88091.0,0.43211609]
[1765755697562,0.38264,88092.0,88091.0,0.42025]
[1765755698062,0.002,88092.0,88091.0,0.42025]
[1765755698255,0.38264,88092.0,88091.0,0.42025]
[1765755701955,0.49406,88092.0,88091.0,0.023]
[1765755702154,0.38264,88092.0,88091.0,0.023]
[1765755702356,0.38264,88092.0,88091.0,0.42025]
[1765755703750,0.38164,88092.0,88091.0,0.011]
[1765755703956,0.38164,88092.0,88083.0,0.00017022]
[1765755703957,0.38064,88084.0,88083.0,0.39742022]
[1765755704350,0.3919918,88084.0,88083.0,0.39742022]
[1765755705352,0.3919918,88084.0,88083.0,0.40042022]
[1765755706261,0.3919918,88084.0,88083.0,0.00517022]
[1765755706461,0.3919918,88084.0,88083.0,0.40242022]
[1765755708663,0.38064,88084.0,88083.0,0.40242022]
[1765755709461,0.27095603,88084.0,88083.0,0.40642022]
[1765755710068,0.002,88084.0,88083.0,0.41042022]
[1765755711065,0.002,88084.0,88083.0,0.40942022]
[1765755711264,0.38264,88084.0,88083.0,0.40942022]
[1765755711663,0.20034,88084.0,88083.0,0.40942022]
[1765755711863,0.002,88084.0,88083.0,0.40942022]
[1765755714268,0.002,88084.0,88083.0,0.45014227]
[1765755714470,0.002,88084.0,88083.0,0.40942022]
[1765755714774,0.00017022,88100.0,88099.0,0.39725]
[1765755714960,0.00017022,88100.0,88099.0,0.4085999]
[1765755716055,0.00217022,88100.0,88099.0,0.4085999]
[1765755716269,0.00317022,88100.0,88099.0,0.4085999]
[1765755716972,0.00217022,88100.0,88099.0,0.4085999]
[1765755717266,0.00217022,88100.0,88099.0,0.4325999]
[1765755717570,0.39651022,88100.0,88099.0,0.4325999]
[1765755718458,0.39651022,88100.0,88099.0,0.024]
[1765755718771,0.39651022,88100.0,88099.0,0.42072]
[1765755719575,0.39651022,88100.0,88099.0,0.40872]
[1765755719576,0.39551022,88100.0,88099.0,0.40872]
[1765755719873,0.39551022,88100.0,88099.0,0.42072]
[1765755719874,0.39651022,88100.0,88099.0,0.42072]
[1765755720272,0.39551022,88100.0,88099.0,0.40872]
[1765755720475,0.39651022,88100.0,88099.0,0.41972]
[1765755721076,0.39651022,88100.0,88099.0,0.78052]
[1765755721077,0.00217022,88100.0,88099.0,0.78052]
[1765755721881,0.00217022,88100.0,88099.0,0.82117741]
[1765755722080,0.00217022,88100.0,88099.0,0.78052]
[1765755722380,0.38902022,88100.0,88099.0,0.78052]
[1765755723377,0.00217022,88100.0,88099.0,0.78052]
[1765755724978,0.38902022,88100.0,88099.0,0.22105]
[1765755725277,0.00217022,88100.0,88099.0,0.4310699]
[1765755726776,0.38685,88115.0,88114.0,0.39672]
[1765755727368,0.19085,88115.0,88114.0,0.39672]
[1765755727568,0.563,88127.0,88126.0,0.19805]
[1765755727569,0.94985,88127.0,88126.0,0.19805]
[1765755727774,0.94985,88127.0,88110.0,0.11592]
[1765755727775,0.38685,88119.0,88118.0,0.00017022]
[1765755728077,0.3981973,88119.0,88118.0,0.00017022]
[1765755728864,0.38685,88106.0,88105.0,0.04077108]
[1765755729183,0.38685,88100.0,88099.0,0.04077108]
[1765755729376,0.38685,88100.0,88099.0,0.19805]
[1765755730167,0.00017022,88108.0,88091.0,0.00017022]
[1765755730168,0.38685,88094.0,88091.0,0.00017022]
[1765755730372,0.0113504,88095.0,88091.0,0.39689022]
[1765755730373,0.38685,88092.0,88091.0,0.39689022]
[1765755731183,0.3982008,88092.0,88091.0,0.39689022]
[1765755731381,0.3982008,88092.0,88091.0,0.00017022]
[1765755731977,0.8682308,88092.0,88091.0,0.00017022]
[1765755732378,0.8682308,88092.0,88091.0,0.00217022]
[1765755732780,0.8682308,88092.0,88091.0,0.00417022]
[1765755732981,0.7590008,88092.0,88091.0,0.00417022]
[1765755733182,0.8671808,88092.0,88091.0,0.00417022]
[1765755733381,0.8671808,88092.0,88091.0,0.00217022]
[1765755734287,0.19085,88077.0,88076.0,0.75752]
[1765755734491,0.38685,88077.0,88076.0,0.32440303]
[1765755734677,0.38685,88077.0,88063.0,0.04076719]
[1765755734678,0.38685,88064.0,88063.0,0.04076719]
[1765755734981,0.38685,88063.0,88062.0,0.04076719]
[1765755735280,0.38685,88060.0,88059.0,0.3608]
[1765755735872,0.38685,88060.0,88059.0,0.75752]
[1765755736475,0.38785,88060.0,88059.0,0.77252]
[1765755736678,0.001,88060.0,88059.0,0.77252]
[1765755736880,0.19185,88060.0,88059.0,0.77252]
[1765755737088,0.38785,88060.0,88059.0,0.3758]
[1765755737886,0.38885,88060.0,88059.0,0.3908]
[1765755738276,0.46694,88060.0,88059.0,0.03]
[1765755739278,0.38885,88060.0,88059.0,0.03]
[1765755740278,0.74965,88060.0,88059.0,0.03]
[1765755742283,0.74965,88060.0,88059.0,0.42672]
[1765755742284,0.55365,88060.0,88059.0,0.42672]
[1765755742584,0.002,88060.0,88059.0,0.42672]
[1765755742782,0.19285,88060.0,88059.0,0.42672]
[1765755742983,0.38885,88060.0,88059.0,0.42672]
[1765755744680,0.002,88060.0,88059.0,0.42672]
[1765755746890,0.37361,88060.0,88059.0,0.42672]
[1765755747397,0.37978,88060.0,88059.0,0.03]
[1765755748290,0.37978,88060.0,88059.0,0.2228]
[1765755748487,0.37978,88060.0,88059.0,0.41028]
[1765755748676,0.37978,88060.0,88059.0,0.03]
[1765755748677,0.3911349,88060.0,88059.0,0.03]
[1765755748883,0.7519349,88060.0,88059.0,0.03]
[1765755749891,0.5068349,88060.0,88059.0,0.03]
[1765755750185,0.5819149,88060.0,88059.0,0.03]
[1765755750781,0.1486,88039.0,88030.0,0.0113588]
[1765755750993,0.1486,88039.0,88027.0,0.3608]
[1765755750994,0.1486,88039.0,88033.0,0.0113583]
[1765755751180,0.1486,88039.0,88029.0,0.1272789]
[1765755751979,0.15072748,88039.0,88038.0,0.5152]
[1765755752189,0.00412748,88039.0,88038.0,0.5332]
[1765755753896,0.00212748,88039.0,88038.0,0.5152]
[1765755754100,0.00112748,88039.0,88038.0,0.5052]
[1765755754395,0.00212748,88039.0,88038.0,0.5142]
[1765755755887,0.11968748,88039.0,88038.0,0.5142]
[1765755756088,0.23892748,88039.0,88038.0,0.13392]
[1765755758492,0.23892748,88039.0,88038.0,0.018]
[1765755759497,0.23892748,88039.0,88038.0,0.3273]
[1765755759703,0.23892748,88039.0,88038.0,0.51478]
[1765755759999,0.11968748,88039.0,88038.0,0.51478]
[1765755760795,0.23112748,88039.0,88038.0,0.51478]
[1765755761499,0.00212748,88039.0,88038.0,0.51478]
[1765755764396,0.00017032,88047.0,88046.0,0.3916367]
[1765755764604,0.00017032,88047.0,88046.0,0.7524367]
[1765755765493,0.11182032,88047.0,88046.0,0.7524367]
[1765755765795,0.00017032,88047.0,88046.0,0.7524367]
[1765755766398,0.22143032,88047.0,88046.0,0.004]
[1765755766704,0.22143032,88047.0,88046.0,0.005]
[1765755766705,0.22243032,88047.0,88046.0,0.005]
[1765755769902,0.21352,88039.0,88038.0,0.1165]
[1765755770097,0.57432,88039.0,88038.0,0.1165]
[1765755770297,0.2238787,88031.0,88030.0,0.19297032]
[1765755770499,0.2238787,88031.0,88030.0,0.38045032]
[1765755771703,0.5844576,88039.0,88038.0,0.49678]
[1765755772505,0.5834576,88039.0,88038.0,0.49678]
[1765755772712,0.5824576,88039.0,88038.0,0.49678]
[1765755773300,0.5834576,88039.0,88038.0,0.50378]
[1765755773501,0.5844576,88039.0,88038.0,0.51178]
[1765755775701,0.5731,88039.0,88038.0,0.51178]
[1765755775905,0.002,88039.0,88038.0,0.51178]
[1765755776907,0.0019571,88039.0,88038.0,0.51178]
[1765755777308,0.0019571,88039.0,88038.0,0.55254719]
[1765755778312,0.0019571,88039.0,88038.0,0.51178]
[1765755778715,0.00017032,88047.0,88038.0,0.51178]
[1765755778716,0.00017032,88047.0,88046.0,0.38739]
[1765755779920,0.00017032,88047.0,88046.0,0.38839]
[1765755780216,0.00217032,88047.0,88046.0,0.39139]
[1765755781413,3.2e-07,88047.0,88046.0,0.39139]
[1765755781617,0.10222705,88056.0,88055.0,0.3987456]
[1765755781916,0.3284518,88085.0,88055.0,0.3987456]
[1765755781917,0.0113529,88076.0,88075.0,0.38739]
[1765755782120,0.2112329,88076.0,88075.0,0.38739]
[1765755782716,0.00017032,88084.0,88083.0,0.398742]
[1765755782717,3.2e-07,88084.0,88083.0,0.398742]
[1765755782912,0.3608,88099.0,88098.0,0.38739]
[1765755783115,0.3608,88111.0,88110.0,0.38739]
[1765755783308,0.2021305,88118.0,88117.0,0.38739]
[1765755783508,0.0031305,88118.0,88117.0,0.38739]
[1765755785205,0.0061305,88118.0,88117.0,0.38839]
[1765755785816,0.0131305,88118.0,88117.0,0.38939]
[1765755786611,0.2169105,88118.0,88117.0,0.38939]
[1765755788412,0.0131305,88118.0,88117.0,0.38939]
[1765755790822,5e-07,88118.0,88117.0,0.38939]
[1765755791018,0.10222705,88130.0,88129.0,0.38739]
[1765755791221,0.2399251,88137.0,88136.0,0.38739]
[1765755791920,0.2389158,88131.0,88130.0,0.50786]
[1765755792332,0.2389158,88131.0,88130.0,0.12047]
[1765755793024,0.2389158,88131.0,88130.0,0.50786]
[1765755793226,0.2389158,88131.0,88130.0,0.50886]
[1765755793227,0.12029,88131.0,88130.0,0.50886]
[1765755793725,0.13943,88131.0,88130.0,0.50886]
[1765755794032,0.27286,88131.0,88130.0,0.50886]
[1765755794325,0.28086,88131.0,88130.0,0.50986]
[1765755796033,0.28086,88131.0,88130.0,0.31016]
[1765755796232,0.28086,88131.0,88130.0,0.50986]
[1765755798226,0.014,88131.0,88130.0,0.50986]
[1765755798725,0.27004,88131.0,88130.0,0.50986]
[1765755799329,0.014,88131.0,88130.0,0.50986]
[1765755801139,0.00017022,88139.0,88138.0,0.3987349]
[1765755801341,0.00017022,88139.0,88138.0,0.7595349]
[1765755801523,0.35162302,88150.0,88149.0,0.38739]
[1765755801840,0.2496,88150.0,88149.0,0.38739]
[1765755803238,0.2506,88150.0,88149.0,0.38739]
[1765755803732,0.1278,88150.0,88149.0,0.38739]
[1765755804332,0.25299,88150.0,88149.0,0.38739]
[1765755805123,0.003,88150.0,88149.0,0.38739]
[1765755805330,0.12711,88150.0,88149.0,0.38739]
[1765755805633,0.25122,88150.0,88149.0,0.38739]
[1765755806339,0.24392,88147.0,88146.0,0.50109]
[1765755806534,0.2555244,88142.0,88141.0,0.00017022]
[1765755807541,0.12196,88142.0,88141.0,0.38079022]
[1765755807727,0.12296,88142.0,88141.0,0.38079022]
[1765755808335,0.2543644,88142.0,88141.0,0.38079022]
[1765755809444,0.2553644,88142.0,88141.0,0.38079022]
[1765755809942,0.2543644,88142.0,88141.0,0.38179022]
[1765755811247,0.2543644,88142.0,88141.0,0.19451022]
[1765755811840,0.2543644,88142.0,88141.0,0.00117022]
[1765755812743,0.2533644,88142.0,88141.0,0.00017022]
[1765755813045,0.2553644,88142.0,88141.0,0.00017022]
[1765755813744,0.2573644,88142.0,88141.0,0.00017022]
[1765755814045,0.2553644,88142.0,88141.0,0.00017022]
[1765755814247,0.2583644,88142.0,88141.0,0.00117022]
[1765755816244,0.2583644,88142.0,88141.0,0.40547022]
[1765755817341,0.005,88142.0,88141.0,0.40547022]
[1765755824853,0.21261,88142.0,88141.0,0.40547022]
[1765755826152,0.10933,88142.0,88141.0,0.40547022]
[1765755826853,0.005,88142.0,88141.0,0.40547022]
[1765755827154,0.005,88142.0,88130.0,0.12047]
[1765755827155,0.2286858,88131.0,88130.0,0.12047]
[1765755827350,0.5894858,88131.0,88130.0,0.52477]
[1765755828238,0.5894858,88131.0,88122.0,0.00017022]
[1765755828239,0.2266268,88123.0,88122.0,0.00017022]
[1765755828444,0.5874268,88123.0,88122.0,0.00017022]
[1765755829445,0.5884268,88123.0,88122.0,0.20417022]
[1765755829947,0.5904268,88123.0,88122.0,0.20417022]
[1765755830450,0.5904268,88123.0,88122.0,0.00017022]
[1765755830646,0.2234885,88110.0,88109.0,0.12105]
[1765755831649,0.2234885,88110.0,88109.0,0.32505]
[1765755831843,0.2244885,88110.0,88109.0,0.32505]
[1765755832043,0.2244885,88110.0,88109.0,0.52535]
[1765755832752,0.2264885,88110.0,88109.0,0.52535]
[1765755833350,0.2264885,88110.0,88109.0,0.12105]
[1765755833550,0.2183595,88102.0,88101.0,0.40447022]
[1765755834751,0.2183595,88102.0,88101.0,0.40747022]
[1765755835258,0.10402,88102.0,88101.0,0.40747022]
[1765755835649,0.20597,88102.0,88101.0,0.40747022]
[1765755836059,0.20597,88102.0,88101.0,0.00317022]
[1765755836859,0.3608,88103.0,88096.0,0.12105]
[1765755836860,0.2123402,88097.0,88096.0,0.12105]
[1765755837356,0.2123402,88097.0,88096.0,0.31234]
[1765755837558,0.20099,88097.0,88096.0,0.50472]
[1765755837758,0.71592,88100.0,88099.0,0.38367]
[1765755837963,0.81496,88100.0,88099.0,0.38367]
[1765755838863,0.45984,88103.0,88102.0,0.38367]
[1765755839264,0.55842,88103.0,88102.0,0.38367]
[1765755839865,0.19762,88103.0,88102.0,0.38367]
[1765755840562,0.09904,88103.0,88102.0,0.38367]
[1765755840955,0.71592,88104.0,88103.0,0.38367]
[1765755841960,0.8228082,88112.0,88111.0,0.38367]
[1765755842164,0.7273082,88112.0,88111.0,0.38367]
[1765755842368,0.71596,88112.0,88111.0,0.38367]
[1765755842760,0.71596,88112.0,88104.0,0.1216692]
[1765755842761,0.18894,88105.0,88104.0,0.11032]
[1765755842967,0.54974,88105.0,88104.0,0.11032]
[1765755844470,0.55274,88105.0,88104.0,0.11132]
[1765755844971,0.55174,88105.0,88104.0,0.11132]
[1765755845168,0.55274,88105.0,88104.0,0.11132]
[1765755845667,0.55274,88105.0,88104.0,0.49499]
[1765755846062,0.003,88105.0,88104.0,0.49499]
[1765755846668,0.001,88105.0,88104.0,0.49399]
[1765755846868,0.002,88105.0,88104.0,0.49499]
[1765755847171,0.003,88105.0,88104.0,0.49499]
[1765755847577,0.71596,88107.0,88106.0,0.38367]
[1765755850275,0.71696,88107.0,88106.0,0.38367]
[1765755851077,0.71696,88107.0,88106.0,0.38467]
[1765755854372,0.001,88107.0,88106.0,0.38467]
[1765755862885,0.2022,88126.0,88117.0,0.38367]
[1765755863182,1.4307861,88129.0,88117.0,0.74447]
[1765755863183,1.41944,88129.0,88117.0,0.74447]
[1765755864074,0.00317022,88118.0,88117.0,0.74547]
[1765755864379,0.00517022,88118.0,88117.0,0.74547]
[1765755865174,0.06044324,88149.0,88117.0,0.74547]
[1765755865175,0.0113458,88132.0,88126.0,0.3950164]
[1765755865370,0.1577,88127.0,88126.0,0.3608]
[1765755865580,0.15576,88124.0,88123.0,0.49399]
[1765755866371,0.15568,88118.0,88117.0,0.72892]
[1765755866780,0.15568,88118.0,88117.0,0.72192]
[1765755867181,0.07784,88118.0,88117.0,0.72192]
[1765755867584,0.1664664,88127.0,88126.0,0.36365]
[1765755867881,0.15512,88127.0,88126.0,0.36365]
[1765755868882,0.15234,88124.0,88123.0,0.1043]
[1765755870383,0.1504,88110.0,88109.0,0.11049022]
[1765755870583,0.1504,88110.0,88109.0,0.28942022]
[1765755870783,0.1504,88110.0,88109.0,0.47501022]
[1765755871782,0.1514,88110.0,88109.0,0.47501022]
[1765755872383,0.1504,88110.0,88109.0,0.47501022]
[1765755872583,0.1504,88110.0,88109.0,0.00017022]
[1765755872890,0.1504,88110.0,88109.0,0.00117022]
[1765755873193,0.15616378,88110.0,88109.0,0.00117022]
[1765755873894,0.15616378,88110.0,88109.0,0.00017022]
[1765755874196,0.87464378,88110.0,88109.0,0.00017022]
[1765755874788,0.87864378,88110.0,88109.0,0.00117022]
[1765755875385,0.87864378,88110.0,88109.0,0.00017022]
[1765755875386,0.87164378,88110.0,88109.0,0.00017022]
[1765755875586,0.87864378,88110.0,88109.0,0.00117022]
[1765755877087,0.1483721,88082.0,88072.0,0.04076999]
[1765755877284,0.8638121,88082.0,88081.0,0.44118283]
[1765755877687,0.3608,88084.0,88083.0,0.36452]
[1765755877893,1.07624,88084.0,88083.0,0.36452]
[1765755878991,1.07624,88084.0,88083.0,0.36652]
[1765755879194,1.271,88084.0,88083.0,0.36852]
[1765755879796,1.271,88084.0,88083.0,0.36652]
[1765755880686,1.273,88084.0,88083.0,0.36452]
[1765755880889,1.27880691,88084.0,88083.0,0.36452]
[1765755881599,0.56432691,88084.0,88083.0,0.36452]
[1765755881789,1.27980691,88084.0,88083.0,0.36452]
[1765755881995,1.27980691,88084.0,88075.0,0.36469022]
[1765755881996,0.1934,88076.0,88075.0,0.36469022]
[1765755882189,0.2047529,88076.0,88075.0,0.36469022]
[1765755882586,0.5655529,88076.0,88075.0,0.00017022]
[1765755882988,0.19936691,88084.0,88083.0,0.36452]
[1765755883298,0.19156,88082.0,88081.0,0.1043]
[1765755883994,0.19156,88082.0,88081.0,0.46882]
[1765755884301,0.19156,88082.0,88081.0,0.28323]
[1765755884592,0.19256,88082.0,88081.0,0.28323]
[1765755885389,0.19456,88082.0,88081.0,0.46882]
[1765755887487,0.19456,88082.0,88081.0,0.28323]
[1765755887999,0.19456,88082.0,88081.0,0.46882]
[1765755890494,0.55536,88082.0,88081.0,0.46882]
[1765755893004,1.17506,88082.0,88081.0,0.46882]
[1765755893199,0.3638,88082.0,88081.0,0.46882]
[1765755893405,1.07928,88082.0,88081.0,0.46882]
[1765755893596,1.07924,88082.0,88081.0,0.46882]
[1765755893902,0.001,88082.0,88081.0,0.46882]
[1765755894103,0.10217472,88091.0,88090.0,0.36452]
[1765755894290,0.3786,88091.0,88090.0,0.36452]
[1765755895596,0.37538,88091.0,88090.0,0.36452]
[1765755895795,0.20512,88091.0,88090.0,0.36452]
[1765755896194,0.71544,88093.0,88091.0,0.36452]
[1765755897502,0.16965022,88092.0,88091.0,0.36452]
[1765755897702,0.16965022,88092.0,88091.0,0.36552]
[1765755898507,0.08530022,88092.0,88091.0,0.36552]
[1765755898709,0.08630022,88092.0,88091.0,0.36552]
[1765755899299,0.00117022,88092.0,88091.0,0.36552]
[1765755901113,0.10217472,88101.0,88100.0,0.34476]
[1765755901304,0.70674,88108.0,88107.0,0.34476]
[1765755901504,0.2135453,88136.0,88114.0,0.34476]
[1765755901703,1.07616,88115.0,88114.0,0.34476]